[Event "88th Tata Steel Masters 2026"]
[White "Van Foreest,Jorden"]
[Black "Erigaisi Arjun"]
[Site "Wijk aan Zee"]
[Round "12.5"]
[Annotator "TA"]
[Result "1/2-1/2"]
[Date "2026.01.31"]
[WhiteElo "2703"]
[BlackElo "2775"]
[PlyCount "71"]
[TimeControl "60"]

{[%evp 9,71,-10,0,-4,19,15,6,0,-3,-6,-6,-13,-19,-30,0,-23,0,0,16,27,15,0,68,60,73,63,64,51,73,75,84,84,74,78,77,76,97,82,88,2,4,0,0,0,0,0,36,27,49,40,56,45,33,43,66,10,20,0,0,0,18,0,0,0]} 1. e4 {[%emt 0:0:0]} e5 {[%emt 0:0:0]} 2. Nc3 {[%emt 0:0:0]} Nc6 {[%emt 0:0:0]} 3. Bc4 {[%emt 0:0:0]} Nf6 {[%emt 0:0:0]} 4. d3 {[%emt 0:0:0]} Bb4 {[%emt 0:0:0][%cal Yf8b4,Yb4c5,Yc5d4][%mdl 32]} 5. Bd2 {[%emt 0:0:0]} O-O {[%emt 0:0:0]} 6. Nge2 {[%emt 0:0:0] C28: Vienna Game: 2...Nf6 3 Bc4 Nc6.} Na5 {[%emt 0:0:0]} 7. a3 {[%emt 0:0:0]} Nxc4 {[%emt 0:0:0]} 8. dxc4 {[%emt 0:0:0]} Bc5 {[%emt 0:0:0] [#] Threatens to win with ...Ng4.} 9. Ng3 {[%emt 0:0:0]} d6 {[%emt 0:0:24]} 10. Qe2 {[%emt 0:0:0]} a6 $146 {[%emt 0:1:55]} ({Predecessor:} 10... c6 11. Na4 Bd4 12. c3 Bb6 13. Bg5 h6 14. Nxb6 axb6 15. Bxf6 Qxf6 16. Rd1 Rd8 {1-0 Skripchenko,A (2450)-Dergatschova,A (2210) BL 0001 (Women) 2000 (8.1)} )11. Nf5 {[%emt 0:8:58]} Bxf5 {[%emt 0:12:38]} 12. exf5 {[%emt 0:0:38]} Bd4 {[%emt 0:0:40]} 13. g4 {[%emt 0:12:57][%cal Yg2g4,Yg4g5][%mdl 32]} d5 {[%emt 0:3:44]} 14. O-O-O {[%emt 0:4:27]} c6 {[%emt 0:1:47][%cal Yc7c6,Yc6d5][%mdl 32]} 15. h4 {[%emt 0:24:34]} Re8 {[%emt 0:11:3]} (15... Qb6 $11 )16. g5 $14 {[%emt 0:2:6]} Bxc3 {[%emt 0:1:17]} 17. Bxc3 {[%emt 0:0:39]} Ne4 {[%emt 0:0:39]} 18. Be1 {[%emt 0:1:0][%cal Yf5f6]} b5 {[%emt 0:12:2]} 19. cxd5 {[%emt 0:0:46]} cxd5 {[%emt 0:0:34]} 20. Qd3 {[%emt 0:8:14]} Qc8 {[%emt 0:7:34]} 21. f6 {[%emt 0:0:46]} Rd8 {[%emt 0:1:44]} 22. fxg7 {[%emt 0:2:20][%csl Yg7] White has a strong passed pawn} a5 {[%emt 0:12:10]} 23. h5 {[%emt 0:11:13]} (23. Qxb5 Rb8 24. Qe2 Qb7 $16 (24... Kxg7 $2 25. f3 $18 ))Nxg5 {[%emt 0:1:45]} 24. f4 {[%emt 0:0:36] White is more active.} ({White should play} 24. Qxb5 $16 Qf5 25. h6 (25. Bxa5 Rdc8 $16 )(25. Rxd5 $2 Qf3 $19 ))e4 $1 $11 {[%emt 0:18:26] Black is weak on the dark squares} 25. Qxb5 {[%emt 0:1:33]} Rb8 {[%emt 0:2:27]} 26. Qxa5 {[%emt 0:4:24]} Qb7 {[%emt 0:0:54]} 27. Qb4 {[%emt 0:3:50]} ({Inferior is} 27. fxg5 Qxb2+ 28. Kd2 e3+ 29. Kd3 (29. Kxe3 $2 {perishes.} Qxc2 30. Qd2 Qe4+ 31. Kf2 Qxh1 $19 )Qe5 $19 )Qc7 {[%emt 0:3:6]} (27... Qd7 $5 28. Qd2 Qb7 $16 )28. Qc3 {[%emt 0:2:53]} Qxf4+ {[%emt 0:0:36]} 29. Bd2 {[%emt 0:0:53] Really sharp!} Qf5 {[%emt 0:0:40]} 30. Bxg5 {[%emt 0:2:44]} Qxg5+ {[%emt 0:0:34]} 31. Kb1 {[%emt 0:0:41]} Rbc8 {[%emt 0:3:6]} 32. Qd4 {[%emt 0:2:12]} (32. Qh3 $1 $14 )Qg2 {[%emt 0:3:14] The position is equal.} 33. Qa4 {[%emt 0:6:17]} Ra8 {[%emt 0:2:42]} 34. Qd4 {[%emt 0:1:43]} Rac8 $1 {[%emt 0:0:42]} 35. Qa4 {[%emt 0:0:35]} Ra8 {[%emt 0:1:26]} 36. Qd4 {[%emt 0:0:54] Weighted Error Value: White=0.09 (flawless) /Black=0.10 (very precise)   Mistake:       	White=2     	Black=1      Inaccurate:     	---       	Black=1      OK:         	White=3     	Black=4      Best:        	White=1     	---        Strong:       	---       	Black=2} 1/2-1/2

[Event "88th Tata Steel Masters 2026"]
[White "Niemann,Hans Moke"]
[Black "Gukesh D"]
[Site "Wijk aan Zee"]
[Round "12.6"]
[Annotator "RC"]
[Result "1/2-1/2"]
[Date "2026.01.31"]
[WhiteElo "2725"]
[BlackElo "2754"]
[PlyCount "126"]
[TimeControl "60"]

1. e4 {[%emt 0:0:0]} e5 {[%emt 0:0:0]} 2. Nf3 {[%emt 0:0:0]} Nc6 {[%emt 0:0:0]} 3. Bb5 {[%emt 0:0:0]} a6 {[%emt 0:0:0]} 4. Ba4 {[%emt 0:0:0]} Nf6 {[%emt 0:0:0]} 5. O-O {[%emt 0:0:0]} Be7 {[%emt 0:0:0]} 6. d3 {[%emt 0:0:0]} b5 {[%emt 0:0:0]} 7. Bb3 {[%emt 0:0:0]} O-O {[%emt 0:0:0]} 8. a4 {[%emt 0:0:0]} Bb7 {[%emt 0:0:0]} 9. Re1 {[%emt 0:0:0]} h6 {[%emt 0:0:0]} 10. axb5 {[%emt 0:1:11]} axb5 {[%emt 0:0:0]} 11. Rxa8 {[%emt 0:0:36]} Qxa8 {[%emt 0:0:0]} 12. Nc3 {[%emt 0:0:40]} Bb4 {[%emt 0:0:0]} 13. Bd2 {[%emt 0:2:3]} Bxc3 {[%emt 0:0:0]} 14. bxc3 {[%emt 0:6:46]} d6 {[%emt 0:0:0]} 15. Qb1 {[%emt 0:8:51]} Ne7 {[%emt 0:4:53]} 16. c4 {[%emt 0:4:10]} bxc4 {[%emt 0:3:36]} 17. Bxc4 {[%emt 0:0:0]} Ba6 {[%emt 0:1:28]} 18. Bb3 {[%emt 0:1:56]} Bc8 {[%emt 0:11:4]} 19. Qb2 {[%emt 0:1:53]} Bg4 {[%emt 0:1:15]} 20. Ra1 {[%emt 0:18:35]} Qb8 {[%emt 0:1:40]} 21. Nxe5 {[%emt 0:8:44]} dxe5 {[%emt 0:2:19]} 22. Qxe5 {[%emt 0:4:21]} Ng6 {[%emt 0:9:29]} 23. Qg3 {[%emt 0:1:2]} c5 {[%emt 0:2:6]} 24. f4 {[%emt 0:6:26]} h5 {[%emt 0:5:8]} 25. e5 {[%emt 0:4:45]} h4 {[%emt 0:28:6]} 26. Qe3 {[%emt 0:12:36]} Nh5 {[%emt 0:0:42]} 27. Qe4 {[%emt 0:2:1]} Qc8 {[%emt 0:0:56]} 28. Ra4 {[%emt 0:10:21]} Qf5 {[%emt 0:6:27]} 29. Qxf5 {[%emt 0:3:49]} Bxf5 {[%emt 0:0:32]} 30. Kf2 {[%emt 0:1:13]} Bd7 {[%emt 0:3:12]} 31. Ra7 {[%emt 0:5:33]} Be6 {[%emt 0:1:3]} 32. Kf3 {[%emt 0:5:7]} Bxb3 {[%emt 0:8:39]} 33. cxb3 {[%emt 0:0:33]} f5 {[%emt 0:0:45]} 34. Ra6 {[%emt 0:1:33]} Kh7 {[%emt 0:1:14]} 35. Rd6 {[%emt 0:0:43]} Rb8 {[%emt 0:2:26]} 36. g4 {[%emt 0:1:57]} hxg3 {[%emt 0:0:48]} 37. hxg3 {[%emt 0:0:32]} Rxb3 {[%emt 0:0:44]} 38. Be1 {[%emt 0:1:1]} c4 {[%emt 0:3:24]} 39. Ke3 {[%emt 0:0:31]} cxd3 {[%emt 0:8:59]} 40. Rxd3 {[%emt 0:0:0]} Rxd3+ {[%emt 0:0:0]} 41. Kxd3 {[%emt 0:20:21]} Nhxf4+ {[%emt 0:36:36]} 42. gxf4 {[%emt 0:0:11]} Nxf4+ {[%emt 0:0:4]} 43. Kd4 {[%emt 0:1:6]} Kg6 {[%emt 0:0:30]} 44. Bb4 {[%emt 0:1:4]} Kf7 {[%emt 0:3:15]} 45. Bd2 {[%emt 0:0:18]} Ne6+ {[%emt 0:0:25]} 46. Kd5 {[%emt 0:0:10]} Ke7 {[%emt 0:1:56]} 47. Kc6 {[%emt 0:1:22]} Nd8+ {[%emt 0:2:9]} 48. Kd5 {[%emt 0:0:6]} Ne6 {[%emt 0:0:6]} 49. Kc6 {[%emt 0:0:4]} g5 {[%emt 0:0:51]} 50. Bb4+ {[%emt 0:1:33]} Kf7 {[%emt 0:0:8]} 51. Kd5 {[%emt 0:0:10]} Nf4+ {[%emt 0:2:7]} 52. Kd6 {[%emt 0:2:21]} g4 {[%emt 0:5:4]} 53. Ba5 {[%emt 0:7:23]} Ne6 {[%emt 0:1:40]} 54. Be1 {[%emt 0:0:39]} Ng5 {[%emt 0:7:48]} 55. Kd5 {[%emt 0:0:36]} Ne6 {[%emt 0:0:55]} 56. Kd6 {[%emt 0:0:25]} f4 {[%emt 0:0:12]} 57. Kd5 {[%emt 0:0:14]} f3 {[%emt 0:0:30]} 58. Bg3 {[%emt 0:3:12]} Nf4+ {[%emt 0:2:27]} 59. Ke4 {[%emt 0:0:6]} Nh5 {[%emt 0:0:18]} 60. Bh4 {[%emt 0:1:0]} Ke6 {[%emt 0:0:16]} 61. Bf2 {[%emt 0:15:27]} Ke7 {[%emt 0:15:19]} 62. Be1 {[%emt 0:0:41]} Kf7 {[%emt 0:1:10]} 63. Bh4 {[%emt 0:1:3]} Ke6 {[%emt 0:1:18]} 1/2-1/2

[Event "88th Tata Steel Masters 2026"]
[White "Erdogmus,Yagiz Kaan"]
[Black "Fedoseev,Vladimir"]
[Site "Wijk aan Zee"]
[Round "12.7"]
[Annotator "TA"]
[Result "1-0"]
[Date "2026.01.31"]
[WhiteElo "2658"]
[BlackElo "2705"]
[PlyCount "75"]
[TimeControl "60"]

{[%evp 17,74,25,37,40,57,0,52,-7,45,40,45,53,56,38,45,37,29,36,83,83,138,100,122,114,230,276,288,281,406,399,399,389,387,374,386,371,350,327,350,345,906,895,912,896,911,907,877,883,809,827,806,697,704,689,2814,2502,3122,3010,29999]} 1. e4 {[%emt 0:0:0]} e5 {[%emt 0:0:0]} 2. Nf3 {[%emt 0:0:0]} Nf6 {[%emt 0:0:0]} 3. Nxe5 {[%emt 0:0:0]} d6 {[%emt 0:0:0]} 4. Nf3 {[%emt 0:0:0]} Nxe4 {[%emt 0:0:0]} 5. d4 {[%emt 0:0:0]} d5 {[%emt 0:0:0]} 6. Bd3 {[%emt 0:0:0]} Bd6 {[%emt 0:0:0]} 7. O-O {[%emt 0:0:0]} O-O {[%emt 0:0:0]} 8. c4 {[%emt 0:0:0]} c6 {[%emt 0:0:0]} 9. Re1 {[%emt 0:0:0]} Re8 {[%emt 0:0:0]} 10. Qb3 {[%emt 0:0:0] C42: Petroff Defence: 3 Nxe5 and unusual White 3rd moves.} Na6 {[%emt 0:0:0]} 11. a3 $5 {[%emt 0:14:14][%mdl 4] A sharp opening A promising side line.} ({Better is} 11. c5 $14 Bc7 12. Nc3 )h6 $146 {[%emt 0:0:0]} (11... Bg4 $11 )({Predecessor:} 11... Bg4 12. Nbd2 Nxd2 13. Bxd2 Bxf3 14. Rxe8+ Qxe8 15. Qxb7 Nc7 16. gxf3 Rb8 17. Qxa7 Rxb2 18. c5 Bxh2+ 19. Kxh2 Rxd2 20. Qxc7 Rxd3 21. Re1 Qa8 22. Qd7 Kf8 23. Qe7+ {1-0 Yuan,Q (2341)-Esipenko,A (2691) Titled Tuesday intern op 11th Mar Early blitz 2025 (2)} )12. Nbd2 {[%emt 0:13:56]} (12. cxd5 $14 cxd5 13. Nc3 Nxc3 14. Rxe8+ Qxe8 15. bxc3 )Nf6 {[%emt 0:3:21]} (12... Bf5 $11 13. Qxb7 Qb6 14. Qxb6 axb6 )13. Rxe8+ $14 {[%emt 0:2:36]} Qxe8 {[%emt 0:0:37]} 14. c5 {[%emt 0:4:12]} Bc7 {[%emt 0:9:9]} 15. Nf1 {[%emt 0:6:18][%cal Yd2f1,Yf1g3,Yg3h5][%mdl 32]} Nb8 {[%emt 0:8:55]} 16. Ng3 {[%emt 0:1:45]} Ne4 {[%emt 0:10:54]} 17. Nh5 {[%emt 0:27:28]} Bd8 {[%emt 0:11:31]} (17... Na6 $14 {feels stronger.} )18. Bf4 $16 {[%emt 0:2:53] Black is now going downhill.} g5 {[%emt 0:11:10]} (18... f5 $142 )19. Bc7 {[%emt 0:2:11] White is much more active. The black rooks are passive.} Bxc7 {[%emt 0:3:55]} 20. Bxe4 {[%emt 0:0:32]} Nd7 {[%emt 0:4:6] Prevents Nf6+} (20... Qd8 $16 )21. Bf5 $18 {[%emt 0:8:27]} Qd8 {[%emt 0:1:19]} 22. Re1 {[%emt 0:3:55]} Kh8 {[%emt 0:11:32]} (22... Kf8 {was called for.} 23. h4 Nxc5 24. dxc5 Bxf5 )23. Qe3 {[%emt 0:6:49]} Nf8 {[%emt 0:1:1]} 24. Ne5 {[%emt 0:1:16]} Qe7 {[%emt 0:1:4]} 25. Bxc8 {[%emt 0:4:49]} Rxc8 {[%emt 0:1:54]} 26. Qh3 {[%emt 0:1:49]} Re8 {[%emt 0:2:20]} 27. Ng3 {[%emt 0:1:15]} (27. Ng6+ fxg6 28. Rxe7 Rxe7 $16 )Kh7 {[%emt 0:0:59]} 28. Nf5 $1 {[%emt 0:2:0][%csl Ye7,Yh6] A dynamic duo of knights.} Qe6 {[%emt 0:4:32] [#]} (28... Qf6 29. Nxh6 Kg7 )29. Re3 {[%emt 0:1:3]} Qf6 {[%emt 0:5:23]} 30. Nxh6 {[%emt 0:1:25]} Qxh6 {[%emt 0:5:51]} 31. Qf5+ {[%emt 0:0:31]} Ng6 {[%emt 0:0:48]} 32. Qxf7+ {[%emt 0:0:34]} Qg7 {[%emt 0:0:36]} 33. Qxe8 {[%emt 0:0:43]} Bxe5 {[%emt 0:0:52]} 34. Rh3+ {[%emt 0:0:48]} Nh4 {[%emt 0:0:35]} 35. dxe5 {[%emt 0:0:41]} Kh6 {[%emt 0:0:36]} 36. g3 {[%emt 0:1:9][%cal Yg2g3,Yg3g4][%mdl 32]} Qh7 {[%emt 0:0:54]} 37. Qe6+ {[%emt 0:0:36]} Kh5 {[%emt 0:0:40]} 38. g4# {[%emt 0:0:34] Weighted Error Value: White=0.13 (very precise) /Black=1.06   Mistake:       	White=2     	Black=7      OK:         	White=1     	Black=3      Best:        	White=1     	---} 1-0